Workbook

Sheet Liquidiätsplan
Y2: Aktuelles Jahr | AB2: Vorjahr
B3: Firma: | H3: Müller KG | Y3: Jahr | Z3: Monat | AA3: Tag | AB3: Jahr | AC3: Monat | AD3: Tag
B4: Datum: | H4: 2018-01-31 | Y4: =+YEAR(H4) -> 2018 | Z4: =+MONTH(H4) -> 1 | AA4: =+DAY(H4) -> 31 | AB4: =+Y4-1 -> 2017 | AC4: =+Z4 -> 1 | AD4: =+AA4 -> 31
Y5: Datum | Z5: =DATE(Y4,Z4,AA4) -> 2018-01-31 | AB5: Datum | AC5: =DATE(AB4,AC4,AD4) -> 2017-01-31
B6: =IF(OR(H3="",H4=""),"Liquiditätsplan","Liquidiätsplan der "&H3&" zum "&AA4&"."&Z4&"."&Y4) -> Liquidiätsplan der Müller KG zum 31.1.2018
D10: Vortragswerte | H10: Trotz zweier geplanter Investitionen in den Monaten April und September ist unsere Liquiditätslage als gut zu bezeichnen.
E12: Vortrag liquide Mittel (Bank, Kasse …) | F12: 220000
E13: Kontokorrent | F13: 50000
D15: Liquiditätswerte
H17: =+DATE(Y4,Z4,1) -> 2018-01-01 | I17: =+H17+32 -> 2018-02-02 | J17: 2018-03-06 | K17: 2018-04-07 | L17: 2018-05-09 | M17: 2018-06-10 | N17: 2018-07-12 | O17: 2018-08-13 | P17: 2018-09-14 | Q17: 2018-10-16 | R17: 2018-11-17 | S17: 2018-12-19
D18: 1. Einnahmen – Liquiditätszufluss
E19: Umsatzerlöse (Zahlungseingang) | H19: 325000 | I19: 340000 | J19: 295000 | K19: 275000 | L19: 290000 | M19: 240000 | N19: 210000 | O19: 225000 | P19: 245000 | Q19: 255000 | R19: 280000 | S19: 268000
E20: Erhaltene Anzahlungen | H20: 10000 | I20: 0 | J20: 0 | K20: 15000 | L20: 0 | M20: 0 | N20: 0 | O20: 0 | P20: 10000 | Q20: 0 | R20: 0 | S20: 1000
E21: Sonstige Einnahmen | H21: 10000 | I21: 5000 | J21: 2000 | K21: 4000 | L21: 5000 | M21: 10000 | N21: 5000 | O21: 2000 | P21: 4000 | Q21: 5000 | R21: 2000 | S21: 1000
E22: Sonstige Einnahmen | H22: 0 | I22: 5000 | J22: 0 | K22: 0 | L22: 0 | M22: 5000 | N22: 0 | O22: 0 | P22: 0 | Q22: 10000 | R22: 0 | S22: 0
E23: Summe Einnahmen – Liquiditätszufluss | H23: =SUM(H19:H22) -> 345000 | I23: 350000 | J23: 297000 | K23: 294000 | L23: 295000 | M23: 255000 | N23: 215000 | O23: 227000 | P23: 259000 | Q23: 270000 | R23: 282000 | S23: 270000
D25: 2. Ausgaben – Liquiditätsabfluss
E26: Ausgaben/Auszahlungen allgemein | H26: 25000 | I26: 70000 | J26: 30000 | K26: 40000 | L26: 50000 | M26: 20000 | N26: 15000 | O26: 10000 | P26: 2000 | Q26: 40000 | R26: 25000 | S26: 10000
E27: Löhne und Gehälter | H27: 70000 | I27: 70000 | J27: 70000 | K27: 70000 | L27: 70000 | M27: 80000 | N27: 70000 | O27: 70000 | P27: 70000 | Q27: 70000 | R27: 100000 | S27: 70000
E28: Sozialabgaben | H28: 20000 | I28: 20000 | J28: 20000 | K28: 20000 | L28: 20000 | M28: 25000 | N28: 20000 | O28: 20000 | P28: 20000 | Q28: 20000 | R28: 40000 | S28: 20000
E29: Wareneinsatz | H29: 50000 | I29: 70000 | J29: 40000 | K29: 70000 | L29: 20000 | M29: 30000 | N29: 20000 | O29: 50000 | P29: 20000 | Q29: 10000 | R29: 15000 | S29: 10000
E30: Mieten | H30: 10000 | I30: 10000 | J30: 10000 | K30: 10000 | L30: 10000 | M30: 10000 | N30: 10000 | O30: 10000 | P30: 10000 | Q30: 10000 | R30: 10000 | S30: 10000
E31: Betriebliche Steuern | H31: 5000 | I31: 5000 | J31: 5000 | K31: 5000 | L31: 5000 | M31: 5000 | N31: 5000 | O31: 5000 | P31: 5000 | Q31: 5000 | R31: 5000 | S31: 5000
E32: Versicherungen | H32: 3000 | I32: 20000 | J32: 10000 | K32: 12000 | L32: 4000 | M32: 2000 | N32: 1000 | O32: 3000 | P32: 1000 | Q32: 2000 | R32: 3000 | S32: 1000
E33: Zinsen | H33: 4000 | I33: 4000 | J33: 4000 | K33: 4000 | L33: 4000 | M33: 4000 | N33: 4000 | O33: 4000 | P33: 4000 | Q33: 4000 | R33: 4000 | S33: 4000
E34: Geleistete Anzahlungen | H34: 12000 | I34: 0 | J34: 0 | K34: 0 | L34: 0 | M34: 0 | N34: 10000 | O34: 0 | P34: 0 | Q34: 0 | R34: 0 | S34: 0
E35: Tilgungen für Kredite | H35: 20000 | I35: 20000 | J35: 20000 | K35: 20000 | L35: 20000 | M35: 20000 | N35: 20000 | O35: 20000 | P35: 20000 | Q35: 20000 | R35: 20000 | S35: 20000
E36: Investitionen | H36: 18000 | I36: 10000 | J36: 5000 | K36: 2000 | L36: 1000 | M36: 5000 | N36: 10000 | O36: 8000 | P36: 15000 | Q36: 20000 | R36: 3000 | S36: 5000
E37: Sonstige Ausgaben | H37: 10000 | I37: 10000 | J37: 10000 | K37: 10000 | L37: 10000 | M37: 10000 | N37: 10000 | O37: 10000 | P37: 10000 | Q37: 10000 | R37: 10000 | S37: 10000
E38: Sonstige Ausgaben | H38: 10000 | I38: 10000 | J38: 10000 | K38: 10000 | L38: 10000 | M38: 10000 | N38: 10000 | O38: 10000 | P38: 10000 | Q38: 10000 | R38: 10000 | S38: 10000
E39: Sonstige Ausgaben | H39: 10000 | I39: 10000 | J39: 10000 | K39: 10000 | L39: 10000 | M39: 10000 | N39: 10000 | O39: 10000 | P39: 10000 | Q39: 10000 | R39: 10000 | S39: 10000
E40: Summe Ausgaben – Liquiditätsabfluss | H40: =SUM(H26:H39) -> 267000 | I40: 329000 | J40: 244000 | K40: 283000 | L40: 234000 | M40: 231000 | N40: 215000 | O40: 230000 | P40: 197000 | Q40: 231000 | R40: 255000 | S40: 185000
D42: 3. Kapitalverwendung
E43: Tilgung (–)/Aufnahme (+) von Darlehen | H43: -50000 | K43: -50000 | N43: -50000 | Q43: -50000
E44: Erhöhung (–)/Verminderung (+) von Finanzanlagen
E45: Entnahmen (–)/Einlagen (+)
E46: Investitionen (– /Deinvestition (+) | K46: -150000 | O46: -75000
E47: Summe Kapitalverwendung | H47: =SUM(H43:H46) -> -50000 | I47: 0 | J47: 0 | K47: -200000 | L47: 0 | M47: 0 | N47: -50000 | O47: -75000 | P47: 0 | Q47: -50000 | R47: 0 | S47: 0
D49: 4. Liquiditätsveränderung
E50: Liquiditätsveränderung im Monat | H50: =SUM(H23,-H40,H47) -> 28000 | I50: 21000 | J50: 53000 | K50: -189000 | L50: 61000 | M50: 24000 | N50: -50000 | O50: -78000 | P50: 62000 | Q50: -11000 | R50: 27000 | S50: 85000
E51: Liquiditätsveränderung kumuliert | H51: =+H50 -> 28000 | I51: =+I50+H51 -> 49000 | J51: 102000 | K51: -87000 | L51: -26000 | M51: -2000 | N51: -52000 | O51: -130000 | P51: -68000 | Q51: -79000 | R51: -52000 | S51: 33000
D53: 5. Kontokorrent | E53: Feststellung des Liquiditätsstatus
E54: Liquide Mittel | F54: =+F12 -> 220000 | H54: =+F54+H50 -> 248000 | I54: =+H54+I50 -> 269000 | J54: =+I54+J50 -> 322000 | K54: 133000 | L54: 194000 | M54: 218000 | N54: 168000 | O54: 90000 | P54: 152000 | Q54: 141000 | R54: 168000 | S54: 253000
E55: Verfügbarer Kontokorrent | F55: =+F13 -> 50000 | H55: =+$F$13 -> 50000 | I55: 50000 | J55: 50000 | K55: 50000 | L55: 50000 | M55: 50000 | N55: 50000 | O55: 50000 | P55: 50000 | Q55: 50000 | R55: 50000 | S55: 50000
E56: Summe liquide Mittel | H56: =SUM(H54:H55) -> 298000 | I56: =SUM(I54:I55) -> 319000 | J56: 372000 | K56: 183000 | L56: 244000 | M56: 268000 | N56: 218000 | O56: 140000 | P56: 202000 | Q56: 191000 | R56: 218000 | S56: 303000
